bitfinex-derivatives/quotes_ETHF0:USTF0_20251013
["timestamp","ask_amount","ask_price","bid_price","bid_amount"]
[1760332660812,0.43577,4127.7,4127.6,0.3435]
[1760332661011,1.08924,4128.4,4127.0,0.1312]
[1760332661012,3.2078,4128.4,4127.0,0.1312]
[1760332661210,3.2078,4128.4,4127.5,0.1312]
[1760332661211,0.43577,4127.7,4127.5,0.1312]
[1760332661418,0.43577,4127.7,4127.6,0.3435]
[1760332661709,0.60486828,4127.7,4127.6,0.00272044]
[1760332663116,4.41835302,4127.7,4127.1,0.0365]
[1760332663309,3.64362,4127.2,4127.1,0.0365]
[1760332663814,0.43585,4126.9,4126.8,0.3435]
[1760332664212,0.43578,4127.6,4127.1,0.3435]
[1760332664413,0.43578,4127.6,4127.5,0.1312]
[1760332664615,0.43578,4127.6,4127.5,0.4679]
[1760332666013,0.00279828,4127.7,4127.6,0.3367]
[1760332666417,0.43856828,4127.7,4127.6,0.3367]
[1760332667212,0.4358,4127.4,4127.3,0.3527]
[1760332667418,0.6026,4127.4,4127.3,0.0365]
[1760332667619,0.6026,4127.4,4127.3,0.3527]
[1760332667620,0.4358,4127.4,4127.3,0.3527]
[1760332668319,0.00279828,4127.7,4127.6,0.3162]
[1760332669024,0.00279828,4127.7,4127.3,0.0365]
[1760332669315,0.43579,4127.5,4127.3,0.0365]
[1760332669520,0.43579,4127.5,4127.4,0.3162]
[1760332669725,0.00279828,4127.7,4127.6,0.3162]
[1760332670022,0.43856828,4127.7,4127.6,0.3162]
[1760332670419,0.00279828,4127.7,4127.6,0.3162]
[1760332671614,3.2078,4128.8,4128.5,0.1286]
[1760332671812,3.5362,4128.8,4128.3,3.2078]
[1760332672016,3.2078,4128.8,4128.3,3.2078]
[1760332672224,3.2078,4128.8,4127.5,0.1286]
[1760332672225,0.43575,4127.9,4127.5,0.1286]
[1760332672424,0.3284,4128.4,4127.5,0.4448]
[1760332672622,0.3284,4128.4,4127.5,0.3162]
[1760332672623,0.43578,4127.7,4127.5,0.3162]
[1760332672820,0.4358,4127.4,4127.3,0.3527]
[1760332673020,0.7642,4127.4,4127.3,0.0365]
[1760332674022,3.97139602,4127.4,4127.3,0.0365]
[1760332674223,3.64299602,4127.4,4127.3,0.3527]
[1760332674428,3.64299602,4127.4,4127.3,0.0365]
[1760332674429,0.7642,4127.4,4127.3,0.0365]
[1760332675526,0.4358,4127.4,4127.3,0.3527]
[1760332675728,0.4358,4127.4,4127.3,0.0365]
[1760332676429,0.4358,4127.5,4127.4,0.3162]
[1760332676731,0.3284,4127.4,4127.3,0.0365]
[1760332677326,0.4358,4127.5,4127.3,0.3527]
[1760332677732,0.3284,4127.4,4127.3,0.0365]
[1760332679134,0.4358,4127.5,4127.3,0.0365]
[1760332679432,0.3284,4127.4,4127.3,0.0365]
[1760332679826,0.4358,4127.5,4127.4,0.3162]
[1760332680221,3.2078,4128.1,4127.5,0.4448]
[1760332680222,0.43577,4127.7,4127.5,0.4448]
[1760332680427,0.43577,4127.7,4127.3,0.0365]
[1760332680428,0.43579,4127.5,4127.3,0.0365]
[1760332680830,0.3284,4127.4,4127.3,0.0365]
[1760332681331,0.43579,4127.5,4127.3,0.0365]
[1760332681526,0.43579,4127.5,4127.4,0.3162]
[1760332681830,0.76419,4127.5,4127.3,0.0365]
[1760332682531,0.3284,4127.4,4127.3,0.0365]
[1760332683826,0.3284,4127.4,4126.8,0.00226719]
[1760332683827,0.3284,4126.9,4126.8,0.00226719]
[1760332684634,0.43584,4127.0,4126.8,0.31846719]
[1760332685333,0.43584,4127.0,4126.9,0.3162]
[1760332685536,0.3284,4126.9,4126.8,0.00226719]
[1760332686228,0.43584,4127.0,4126.8,0.00226719]
[1760332686534,0.43584,4127.0,4126.9,0.3162]
[1760332687033,0.3284,4126.9,4126.8,0.00226719]
[1760332689640,0.3284,4126.9,4126.8,0.31846719]
[1760332689932,0.3284,4126.9,4126.8,0.00226719]
[1760332690324,0.43584,4127.0,4126.8,0.00226719]
[1760332690531,0.43584,4127.0,4126.9,0.3162]
[1760332691034,3.3448,4127.5,4126.8,0.00226719]
[1760332691236,3.3448,4127.5,4127.4,0.3162]
[1760332691237,3.2078,4127.5,4127.4,0.3162]
[1760332691530,0.43576,4127.9,4127.5,0.88058]
[1760332691733,0.00237578,4128.4,4128.2,0.3162]
[1760332691933,0.00237578,4128.4,4128.2,0.43571]
[1760332692235,0.00237578,4128.4,4128.3,0.3162]
[1760332692735,0.00237578,4128.4,4128.2,0.3162]
[1760332693036,0.00237578,4128.4,4128.1,3.64352]
[1760332693228,0.00237578,4128.4,4128.2,0.3162]
[1760332693626,0.00237578,4128.4,4128.2,0.43571]
[1760332693828,0.00237578,4128.4,4128.3,0.3162]
[1760332696234,0.43572,4128.2,4128.1,3.2078]
[1760332696428,0.76182,4128.2,4128.1,3.2078]
[1760332696633,0.43583,4127.1,4127.0,0.1286]
[1760332696841,0.43583,4127.1,4127.0,0.4581]
[1760332697140,0.43583,4127.1,4126.8,3.21006719]
[1760332697141,0.3261,4126.9,4126.8,3.21006719]
[1760332697337,0.43584,4127.0,4126.8,3.53956719]
[1760332698039,3.2078,4127.3,4126.8,3.21006719]
[1760332698239,0.43584,4127.0,4126.9,0.3295]
[1760332700737,0.43584,4127.1,4127.0,0.1255]
[1760332701137,1.41561,4127.4,4126.8,3.21006719]
[1760332701333,0.43585,4126.9,4126.8,3.21006719]
[1760332701538,0.76195,4126.9,4126.8,0.00226719]
[1760332702242,0.43585,4126.9,4126.8,0.33176719]
[1760332703342,0.76195,4126.9,4126.8,0.00226719]
[1760332704946,3.95280579,4126.9,4126.8,0.00226719]
[1760332706650,0.43585,4126.9,4126.8,0.33176719]
[1760332707839,3.2078,4127.3,4127.0,0.1255]
[1760332708041,0.43582,4127.2,4127.1,0.3295]
[1760332710352,0.3261,4127.8,4127.1,0.3295]
[1760332710544,0.43581,4127.3,4127.0,3.3333]
[1760332710747,3.2078,4127.9,4127.0,3.2078]
[1760332710748,0.3261,4127.1,4127.0,3.2078]
[1760332710946,1.08943,4127.7,4126.8,0.00226719]
[1760332710947,0.3261,4126.9,4126.8,0.00226719]
[1760332711645,3.42763982,4126.9,4126.8,0.00226719]
[1760332712155,6.63543982,4126.9,4126.8,0.00226719]
[1760332712550,0.89595,4126.0,4125.9,3.2078]
[1760332712757,0.76212,4125.4,4125.2,3.2078]
[1760332712948,0.43599,4125.6,4125.3,0.3295]
[1760332713252,0.43601,4125.5,4125.3,0.3295]
[1760332713552,0.43602,4125.4,4125.3,0.33251747]
[1760332713855,0.00287895,4125.5,4125.4,0.3295]
[1760332714260,0.43601,4125.4,4125.3,0.00301747]
[1760332714450,0.43601,4125.4,4125.3,0.33251747]
[1760332714646,0.00287895,4125.5,4125.3,0.00301747]
[1760332714956,0.00287895,4125.5,4125.4,0.3295]
[1760332715360,0.76211,4125.4,4125.3,0.00301747]
[1760332715853,3.91837378,4125.4,4125.3,0.00301747]
[1760332718758,7.12617378,4125.4,4125.3,0.00301747]
[1760332719356,0.76224,4124.2,4124.1,3.2078]
[1760332719557,0.3261,4124.7,4124.1,3.5373]
[1760332719857,0.43609,4124.7,4124.2,0.3295]
[1760332720054,0.43609,4124.7,4124.3,0.3295]
[1760332720254,0.43609,4124.7,4124.5,0.1255]
[1760332720450,0.3261,4125.1,4124.5,0.1255]
[1760332720657,3.2078,4125.3,4124.7,0.76558]
[1760332720950,3.2078,4125.3,4124.8,0.3295]
[1760332721150,3.2078,4125.3,4124.7,0.43608]
[1760332721346,0.00287895,4125.5,4125.3,0.43601]
[1760332721558,0.00287895,4125.5,4125.4,0.3295]
[1760332721957,0.00287895,4125.5,4125.4,3.5373]
[1760332722657,0.32897895,4125.5,4125.4,3.5373]
[1760332722859,0.32897895,4125.5,4125.4,3.2078]
[1760332723961,0.00287895,4125.5,4125.4,3.5373]
[1760332727570,0.34707895,4125.5,4125.4,3.2078]
[1760332728367,0.34707895,4125.5,4125.4,3.5212]
[1760332728667,0.00287895,4125.5,4125.4,3.5212]
[1760332729266,0.00287895,4125.5,4125.4,3.2078]
[1760332729267,0.34707895,4125.5,4125.4,3.2078]
[1760332729457,1.09006,4125.3,4124.8,3.2078]
[1760332729770,0.78026,4124.9,4124.8,3.2078]
[1760332730367,0.3442,4124.4,4124.2,3.2078]
[1760332731461,0.3442,4124.4,4124.3,0.31622715]
[1760332731669,0.43611,4124.5,4124.3,0.00282715]
[1760332731863,0.43611,4124.5,4124.4,0.3134]
[1760332733068,0.3442,4124.8,4124.4,0.3134]
[1760332733268,0.4361,4124.6,4124.5,0.1275]
[1760332733467,0.4361,4124.6,4124.5,0.3134]
[1760332733768,0.43612,4124.4,4124.3,0.00282715]
[1760332733962,0.78032,4124.4,4124.3,0.00282715]
[1760332736469,0.43612,4124.4,4124.3,3.21062715]
[1760332736668,0.78032,4124.4,4124.3,0.00282715]
[1760332737063,0.43612,4124.4,4124.3,0.31622715]
[1760332738468,0.3442,4124.8,4124.4,0.3134]
[1760332738675,3.2078,4125.1,4124.5,0.1275]
[1760332738870,0.3442,4125.2,4124.5,0.1275]
[1760332739178,0.3442,4125.2,4124.6,0.3134]
[1760332739366,0.43608,4124.7,4124.6,0.3134]
[1760332739668,0.3442,4125.2,4124.6,0.3134]
[1760332739870,0.43609,4124.7,4124.5,0.1275]
[1760332740066,0.43609,4124.7,4124.3,8.15045298]
[1760332740067,0.78029,4124.7,4124.3,3.21062715]
[1760332740261,0.3442,4124.4,4124.3,3.21062715]
[1760332740664,0.3442,4124.4,4124.3,0.00282715]
[1760332741366,0.3442,4124.4,4124.3,7.15e-06]
[1760332741367,3.5236645,4124.4,4124.3,7.15e-06]
[1760332741568,0.78038,4123.8,4123.7,3.2078]
[1760332742575,0.78038,4123.8,4123.7,3.21084201]
[1760332743472,0.43617,4123.9,4123.7,3.52424201]
[1760332743674,0.78037,4123.9,4123.7,3.52424201]
[1760332743976,0.78037,4123.9,4123.7,3.21084201]
[1760332744474,0.78037,4123.9,4123.7,3.52424201]
[1760332744674,0.3442,4123.8,4123.7,3.21084201]
[1760332745578,0.3442,4123.8,4123.7,3.52424201]
[1760332745976,0.43617,4123.9,4123.7,3.52424201]
[1760332746175,0.43617,4123.9,4123.8,0.3134]
[1760332746883,0.3442,4123.8,4123.7,3.21084201]
[1760332747575,0.3442,4123.8,4123.7,0.00304201]
[1760332747871,3.50330519,4123.8,4123.7,0.00304201]
[1760332749272,0.3442,4123.8,4123.7,0.00304201]
[1760332749874,44.0078,4124.2,4123.8,0.74958]
[1760332749875,3.64394,4124.2,4123.8,0.74958]
[1760332750084,0.78036,4124.0,4123.8,0.3134]
[1760332750577,0.3442,4124.0,4123.9,0.3134]
[1760332751776,0.3442,4123.8,4123.7,0.00304201]
[1760332752181,0.3442,4123.8,4123.7,0.31644201]
[1760332752379,0.43617,4123.9,4123.7,0.31644201]
[1760332752684,0.3442,4123.8,4123.7,0.00304201]
[1760332753577,3.2078,4124.2,4123.9,0.3134]
[1760332753780,0.3442,4124.1,4124.0,0.3134]
[1760332753980,0.43616,4124.0,4123.8,0.3134]
[1760332754176,0.3442,4123.9,4123.8,0.3134]
[1760332754686,3.2078,4124.2,4123.9,0.74957]
[1760332754687,0.78035,4124.1,4123.9,0.74957]
[1760332754883,0.43615,4124.1,4124.0,0.3134]
[1760332755072,3.2078,4124.2,4124.0,0.74955]
[1760332755274,3.552,4124.8,4124.6,0.3134]
[1760332755487,0.3442,4124.8,4124.6,0.3134]
[1760332755683,0.3442,4124.8,4124.5,0.4361]
[1760332755982,0.3442,4124.8,4124.7,0.3134]
[1760332756183,0.43608,4124.8,4124.5,0.43611]
[1760332756389,0.76649,4124.7,4124.5,0.43611]
[1760332756688,0.43607,4124.9,4124.6,0.3327]
[1760332756886,0.43607,4124.9,4124.7,0.3327]
[1760332757088,0.76644,4125.1,4124.9,0.3327]
[1760332757283,0.76644,4125.1,4125.0,0.3327]
[1760332757284,0.43604,4125.1,4125.0,0.3327]
[1760332757486,0.43608,4124.8,4124.7,0.3327]
[1760332757687,0.3304,4124.8,4124.7,0.3327]
[1760332757887,0.3304,4125.2,4124.7,0.3327]
[1760332758088,3.2078,4125.3,4124.7,0.3327]
[1760332758385,0.43606,4125.0,4124.7,0.76878]
[1760332758588,0.43606,4125.0,4124.8,0.3327]
[1760332758890,0.43606,4125.0,4124.9,0.3327]
[1760332759484,0.43604,4125.2,4124.5,0.1289]
[1760332759682,0.43604,4125.2,4124.6,0.3327]
[1760332760185,0.43604,4125.2,4124.5,0.1289]
[1760332760186,3.2078,4125.3,4125.1,0.43603]
[1760332760384,3.2078,4125.3,4125.2,0.3327]
[1760332760893,3.5382,4125.3,4125.2,0.3327]
[1760332762489,0.43604,4125.1,4125.0,0.3327]
[1760332763388,0.43604,4125.1,4125.0,0.4616]
[1760332764292,3.64383,4125.3,4125.0,0.1289]
[1760332764691,0.43604,4125.2,4125.0,0.1289]
[1760332764892,0.43604,4125.2,4125.1,0.3327]
[1760332765189,0.43606,4124.9,4124.8,3.5405]
[1760332765990,0.00287895,4125.5,4124.8,3.2078]
[1760332766191,0.43604,4125.1,4125.0,0.4616]
[1760332766493,0.76644,4125.1,4125.0,0.3327]
[1760332766695,0.76644,4125.1,4124.8,3.2078]
[1760332766696,0.43606,4124.9,4124.8,3.2078]
[1760332766893,0.76646,4124.9,4124.8,3.2078]
[1760332769796,0.76646,4124.9,4124.8,3.5405]
[1760332769797,0.43606,4124.9,4124.8,3.5405]
[1760332771584,0.00287895,4125.5,4124.8,3.5405]
[1760332771790,0.43888895,4125.5,4125.4,0.3327]
[1760332772492,0.43888895,4125.5,4125.4,0.40409402]
[1760332773092,0.76928895,4125.5,4125.4,0.07139402]
[1760332773294,0.76928895,4125.5,4125.4,0.40409402]
[1760332773594,0.43888895,4125.5,4125.4,0.40409402]
[1760332777001,0.43888895,4125.5,4125.4,0.83769402]
[1760332778301,0.00287895,4125.5,4125.4,0.83769402]
[1760332779095,0.4359,4126.5,4126.1,0.86953]
[1760332779394,0.4359,4126.5,4126.4,0.3327]
[1760332779594,0.4359,4126.5,4126.4,0.40409402]
[1760332779796,0.43589,4126.6,4126.5,0.1289]
[1760332779995,0.43588,4126.6,4126.5,0.4616]
[1760332780191,0.43761312,4126.6,4126.5,0.4616]
[1760332780699,0.43761312,4126.6,4126.5,0.07139402]
[1760332780700,0.76801312,4126.6,4126.5,0.07139402]
[1760332781092,0.00173312,4126.6,4126.5,0.53299402]
[1760332782298,0.33213312,4126.6,4126.5,0.40409402]
[1760332782504,0.00173312,4126.6,4126.5,0.40409402]
[1760332783200,0.00173312,4126.6,4126.5,3.74079402]
[1760332784397,0.79183312,4126.6,4126.5,0.29219402]
[1760332784595,0.79183312,4126.6,4126.5,0.07139402]
[1760332784596,0.33183312,4126.6,4126.5,0.07139402]
[1760332785792,0.33183312,4126.6,4126.5,0.39019402]
[1760332785997,0.33183312,4126.6,4126.5,0.07139402]
[1760332786205,3.53963312,4126.6,4126.5,0.07139402]
[1760332786392,3.53963312,4126.6,4125.5,5.07207423]
[1760332786393,0.134,4126.5,4125.5,5.07207423]
[1760332786597,0.77789,4125.6,4125.5,3.5438]
[1760332787396,0.77789,4125.6,4125.5,2.68685]
[1760332787605,0.4361,4124.6,4124.5,3.6814]
[1760332787803,0.778,4124.6,4124.5,3.6814]
[1760332788005,0.4361,4124.6,4124.5,3.6814]
[1760332788701,0.778,4124.6,4124.5,3.5438]
[1760332789006,0.4361,4124.6,4124.5,3.5438]
[1760332789602,0.778,4124.6,4124.5,3.5438]
[1760332790407,0.4361,4124.6,4124.5,3.5438]
[1760332791608,0.778,4124.6,4124.5,3.5438]
[1760332792207,0.4361,4124.6,4124.5,3.5438]
[1760332792410,0.4361,4124.6,4124.5,3.6779]
[1760332793705,3.2078,4125.1,4125.0,0.1341]
[1760332793898,3.5497,4125.6,4125.0,0.1341]
[1760332794100,3.2078,4125.6,4125.1,0.336]
[1760332794707,3.2078,4125.6,4125.5,0.1341]
[1760332795007,0.43595,4126.0,4125.6,0.43599]
[1760332795199,3.2078,4126.1,4126.0,0.4701]
[1760332795803,0.43762312,4126.6,4126.5,0.4701]
[1760332796003,0.00173312,4126.6,4126.5,0.4701]
[1760332796410,0.00173312,4126.6,4126.5,0.336]
[1760332796709,0.34363312,4126.6,4126.5,0.336]
[1760332797208,0.34363312,4126.6,4125.8,3.2078]
[1760332797209,0.43596,4125.9,4125.8,3.2078]
[1760332797509,0.43599,4125.6,4125.3,0.336]
[1760332797705,0.43599,4125.6,4125.2,3.64382]
[1760332797908,0.3419,4125.9,4125.3,0.336]
[1760332798910,0.43602,4125.4,4125.3,0.336]
[1760332799616,0.3419,4125.3,4125.2,3.2078]
[1760332800113,0.43608,4124.7,4124.5,0.1341]
[1760332800306,0.3419,4124.8,4124.3,2.07137423]
[1760332800307,0.43612,4124.4,4124.3,2.07137423]
[1760332800509,1.0902,4124.8,4124.2,3.2078]
[1760332800510,0.77803,4124.3,4124.2,3.2078]
[1760332800915,0.43613,4124.3,4124.2,3.5438]
[1760332801709,46.36164878,4126.1,4124.2,3.5438]
[1760332801710,0.43604,4125.1,4125.0,0.4701]
[1760332801910,3.2078,4125.8,4125.1,0.336]
[1760332802308,0.43603,4125.3,4125.1,0.336]
[1760332802513,0.43604,4125.1,4125.0,0.4701]
[1760332805820,0.43596,4125.9,4125.6,0.336]
[1760332806214,3.2078,4126.3,4125.6,0.336]
[1760332806215,0.43594,4126.1,4125.6,0.336]
[1760332806519,0.43593,4126.2,4126.1,0.336]
[1760332807716,3.2078,4126.3,4126.1,0.336]
[1760332808019,0.43591,4126.4,4126.1,3.5438]
[1760332808220,0.43591,4126.4,4126.2,0.336]
[1760332808914,0.43592,4126.3,4126.2,0.336]
[1760332809315,0.43762312,4126.6,4126.5,0.4701]
[1760332810719,0.00173312,4126.6,4126.5,0.4701]
[1760332810922,0.43581,4127.3,4126.9,0.43585]
[1760332811119,3.2078,4127.5,4127.3,0.336]
[1760332811422,3.2078,4127.5,4127.1,0.336]
[1760332812016,3.21046044,4127.5,4127.1,0.33864202]
[1760332812217,0.43582,4127.3,4127.2,0.336]
[1760332813518,3.21046044,4127.5,4127.2,0.77182]
[1760332813717,3.21046044,4127.5,4127.3,0.336]
[1760332814220,3.21046044,4127.5,4127.4,0.336]
[1760332816022,0.4358,4127.4,4127.2,0.336]
[1760332816218,0.43581,4127.3,4127.2,0.336]
[1760332816921,3.21046044,4127.5,4127.2,0.336]
[1760332817117,3.64625044,4127.5,4127.3,0.331]
[1760332817318,0.43581,4127.3,4127.2,0.331]
[1760332817719,0.75691,4127.3,4127.2,0.331]
[1760332817927,0.3211,4127.2,4127.1,0.00264202]
[1760332819627,3.52430349,4127.2,4127.1,0.00264202]
[1760332820019,0.43592,4126.3,4126.2,3.2078]
[1760332820319,0.75702,4126.3,4126.2,3.2078]
[1760332820829,0.75708,4125.7,4125.6,3.5388]
[1760332821024,0.75708,4125.7,4125.6,3.21087274]
[1760332821221,0.43598,4125.7,4125.6,3.54187274]
[1760332822916,4.2975,4126.7,4125.6,3.54187274]
[1760332822917,0.43595,4126.0,4125.7,0.331]
[1760332823921,3.2078,4126.7,4125.7,0.331]
[1760332824120,0.4551,4127.0,4126.3,0.331]
[1760332824530,0.4359,4126.5,4126.2,3.2078]
[1760332824729,0.4359,4126.5,4126.3,0.331]
[1760332824932,0.43591,4126.4,4126.3,0.331]
[1760332825126,0.3211,4127.0,4126.3,0.331]
[1760332825433,0.3211,4127.0,4126.3,0.76691]
[1760332826231,0.43587,4126.8,4126.5,0.1295]
[1760332826632,0.43587,4126.8,4126.5,0.56539]
[1760332826831,0.43587,4126.8,4126.6,0.331]
[1760332827326,3.2078,4127.2,4126.6,0.331]
[1760332827524,3.2078,4127.2,4127.1,0.331]
[1760332828730,0.43581,4127.4,4127.1,0.43583]
[1760332828923,0.00266044,4127.5,4127.4,0.331]
[1760332830827,0.00266044,4127.5,4127.0,0.1295]
[1760332830828,0.00266044,4127.5,4127.1,0.331]
[1760332831231,0.75692,4127.2,4127.1,0.331]
[1760332831638,0.43582,4127.2,4127.1,0.331]
[1760332832326,0.4358,4127.4,4127.1,0.331]
[1760332832532,0.43581,4127.3,4127.1,0.331]
[1760332832730,0.43581,4127.3,4126.7,4.94225063]
[1760332832731,0.43586,4126.8,4126.7,3.5388]
[1760332832931,0.43585,4127.0,4126.7,3.64367]
[1760332833431,0.43585,4127.0,4126.8,0.331]
[1760332833735,0.43585,4127.0,4126.9,0.331]
[1760332835334,3.5289,4127.3,4126.8,0.43586]
[1760332835528,0.43584,4127.1,4126.9,0.331]
[1760332835729,0.43584,4127.1,4127.0,0.331]
[1760332836834,0.65254,4127.1,4127.0,0.5505]
[1760332837034,0.86194,4127.1,4127.0,0.5505]
[1760332837233,1.18304,4127.1,4127.0,0.5505]
[1760332838343,0.3211,4126.3,4126.2,4.94225063]
[1760332838544,0.3211,4126.3,4126.2,3.2078]
[1760332838736,0.43591,4126.4,4126.2,3.5388]
[1760332838932,0.43591,4126.4,4126.2,3.2078]
[1760332839131,0.43591,4126.4,4126.3,0.331]
[1760332839549,3.2078,4127.3,4126.3,0.331]
[1760332839844,0.43586,4126.9,4126.8,0.331]
[1760332842442,0.75696,4126.9,4126.8,0.331]
[1760332843740,0.43588,4126.6,4126.5,0.4605]
[1760332844244,0.3211,4126.4,4126.2,3.2078]
[1760332844544,0.76422,4126.3,4126.2,3.5336]
[1760332845245,0.43597,4125.8,4125.7,2.06025063]
[1760332845445,0.3283,4125.8,4125.7,0.3258]
[1760332845849,0.76427,4125.8,4125.7,0.3258]
[1760332846046,0.43597,4125.8,4125.7,0.3258]
[1760332846949,0.214,4125.8,4125.7,0.7546]
[1760332848447,0.2161,4126.5,4126.4,0.2103]
[1760332848650,3.2078,4126.8,4126.4,0.2103]
[1760332848651,3.2078,4126.8,4126.7,0.319]
[1760332851950,3.4239,4126.8,4126.7,0.7424]
[1760332852148,3.4239,4127.3,4127.2,0.2103]
[1760332852352,3.4239,4127.3,4127.2,0.7424]
[1760332852954,3.9743,4127.3,4127.2,0.7424]
[1760332853751,4.41011,4127.3,4127.2,0.7424]
[1760332854157,4.41011,4127.3,4127.2,0.2103]
[1760332854454,0.65193,4127.1,4127.0,0.7424]
[1760332854751,3.2078,4127.3,4127.0,0.8682]
[1760332854955,0.2161,4127.2,4127.1,0.4234]
[1760332855252,1.20232,4127.2,4127.1,0.319]
[1760332855457,0.87276,4126.9,4126.8,0.7424]
[1760332855951,0.2161,4126.9,4126.8,0.7424]
[1760332856448,0.43584,4127.1,4127.0,0.1258]
[1760332856646,0.43584,4127.1,4127.0,0.8682]
[1760332857150,0.65194,4127.1,4127.0,0.8682]
[1760332857455,1.20234,4127.1,4127.0,0.7424]
[1760332858051,1.20238,4126.6,4126.5,0.2103]
[1760332858252,1.20238,4126.6,4126.5,0.5293]
[1760332858452,3.2078,4127.3,4126.5,0.8682]
[1760332858453,0.3296,4127.2,4126.5,0.8682]
[1760332858761,0.65195,4127.0,4126.9,0.7424]
[1760332858950,0.87275,4127.0,4126.9,0.7424]
[1760332859456,1.20495044,4127.5,4127.4,0.2103]
[1760332859755,1.20495044,4127.5,4127.4,0.5293]
[1760332860452,0.55306044,4127.5,4127.4,0.7424]
[1760332860656,0.00266044,4127.5,4127.4,0.7424]
[1760332861256,0.00266044,4127.5,4127.4,2.47685063]
[1760332861457,0.00266044,4127.5,4127.4,3.9502]
[1760332863465,0.00266044,4127.5,4127.4,5.68661146]
[1760332864357,0.00266044,4127.5,4127.4,3.9502]
[1760332864863,0.00266044,4127.5,4127.4,5.68661146]
[1760332865868,0.43575,4127.9,4127.5,0.43579]
[1760332866063,0.7665,4127.5,4127.4,3.2078]
[1760332866363,0.2161,4127.5,4127.4,3.9502]
[1760332867061,0.21800024,4127.5,4127.4,3.9502]
[1760332869462,0.3296,4127.9,4127.4,3.9502]
[1760332869463,3.2078,4128.8,4128.7,0.2103]
[1760332869660,4.0803,4129.3,4129.2,0.5293]
[1760332869856,3.2078,4129.3,4129.2,0.7424]
[1760332870566,3.86225002,4129.3,4129.2,0.74433818]
[1760332871258,3.42665002,4129.3,4129.2,0.74433818]
[1760332871765,3.21055002,4129.3,4129.2,0.74433818]
[1760332872065,3.42665002,4129.3,4129.2,0.74433818]
[1760332873555,0.00275002,4129.3,4129.2,0.74433818]
[1760332876063,0.76925002,4129.3,4129.2,0.00193818]
[1760332876262,0.43965002,4129.3,4129.2,0.74433818]
[1760332876466,0.21885002,4129.3,4129.2,0.74433818]
[1760332876663,0.00275002,4129.3,4129.2,0.74433818]
[1760332880263,0.3214,4130.9,4130.2,0.4412]
[1760332880568,3.4322,4130.3,4130.2,0.7728]
[1760332880881,0.98131,4130.2,4130.1,0.5516]
[1760332881173,1.19741,4130.2,4130.1,0.5516]
[1760332881368,1.19999092,4130.2,4130.1,0.5516]
[1760332881565,0.87606,4129.8,4129.7,0.7728]
[1760332881767,0.87606,4129.8,4129.2,0.33353818]
[1760332881768,0.43557,4129.6,4129.2,0.33353818]
[1760332881966,0.2244,4129.3,4129.2,0.44313818]
[1760332882367,0.2244,4129.3,4129.2,0.77473818]
[1760332884172,1.19998092,4130.2,4130.1,0.7728]
[1760332884366,1.19998092,4130.2,4130.1,0.22]
[1760332884572,0.43555,4129.8,4129.7,0.7728]
[1760332884878,0.43553,4130.0,4129.7,0.4412]
[1760332885062,0.2244,4129.9,4129.8,0.4412]
[1760332885267,0.2244,4129.9,4129.8,0.7728]
[1760332887978,0.87859092,4130.2,4130.1,0.7728]
[1760332888181,0.43553,4130.0,4129.9,0.22]
[1760332888397,0.87603,4130.0,4129.9,0.22]
[1760332888683,0.87603,4130.0,4129.9,0.5516]
[1760332888976,1.19743,4130.0,4129.9,0.5516]
[1760332889968,0.87603,4130.0,4129.9,0.7728]
[1760332890475,1.19743,4130.0,4129.9,0.5516]
[1760332891072,1.19743,4130.0,4129.9,0.7728]
[1760332891377,0.66249092,4130.2,4130.1,0.7728]
[1760332891571,0.00258092,4130.2,4130.1,1.20831]
[1760332894582,0.00258092,4130.2,4130.1,0.7728]
[1760332895688,0.22698092,4130.2,4130.1,0.7728]
[1760332896184,0.76448092,4130.2,4130.1,0.22]
[1760332896380,1.19744,4129.9,4129.8,0.5516]
[1760332896778,1.19744,4129.9,4129.5,0.4612]
[1760332896779,0.43557,4129.6,4129.5,0.4612]
[1760332897081,1.19747,4129.6,4129.5,0.5516]
[1760332898677,1.19747,4129.6,4129.3,3.2078]
[1760332898678,0.43559,4129.4,4129.3,3.2078]
[1760332898876,1.19749,4129.4,4129.3,3.2078]
[1760332900881,1.19749,4129.4,4129.3,3.4278]
[1760332901281,1.19749,4129.4,4129.3,3.2078]
[1760332902483,1.19749,4129.4,4129.2,0.00193818]
[1760332902969,4.58079001,4129.3,4129.2,0.00193818]
[1760332903378,0.3214,4128.0,4127.9,3.5394]
[1760332903678,0.19585899,4128.0,4127.9,3.9806]
[1760332903882,0.43573,4128.1,4128.0,0.4612]
[1760332904084,0.43573,4128.1,4128.0,0.9024]
[1760332904280,0.43571,4128.3,4128.2,0.4412]
[1760332904483,0.43571,4128.3,4128.2,0.7546]
[1760332904780,0.43562,4129.2,4129.1,0.5223]
[1760332904984,3.4183,4129.8,4129.7,0.4213]
[1760332905181,3.85385,4129.8,4129.7,0.7347]
[1760332906481,3.4183,4129.8,4129.7,0.7347]
[1760332906680,0.00258092,4130.2,4130.0,0.4749]
[1760332906886,0.43809092,4130.2,4130.1,0.3379]
[1760332907687,0.00258092,4130.2,4130.1,0.77341]
[1760332908581,0.00258092,4130.2,4130.1,0.3379]
[1760332908582,0.43808092,4130.2,4130.1,0.3379]
[1760332909379,0.64928092,4130.2,4130.1,0.5497]
[1760332909889,0.21378092,4130.2,4130.1,0.5497]
[1760332910183,0.00258092,4130.2,4130.1,1.21621]
[1760332911378,0.00258092,4130.2,4130.1,0.7807]
[1760332912178,0.21378092,4130.2,4130.1,0.3379]
[1760332912483,0.42628092,4130.2,4130.1,0.3379]
[1760332913879,1.02426,4129.7,4129.6,0.3379]
[1760332914678,0.4237,4129.7,4129.6,0.3379]
[1760332915684,0.4237,4129.2,4129.1,0.3379]